Department family,Entity,Date,Expense type,Expense area,Supplier,Transaction number,Amount
Department of Health,University Hospitals of Morecambe Bay NHS Foundation Trust,07-May-21,Scans & Xray Reporting,Radiology,4Ways Healthcare,100279750,"30,577.50"
Department of Health,University Hospitals of Morecambe Bay NHS Foundation Trust,07-May-21,Scans & Xray Reporting,Radiology,4Ways Healthcare,100278162,"57,471.20"
Department of Health,University Hospitals of Morecambe Bay NHS Foundation Trust,07-May-21,Drugs,Pharmacy,Baxter Healthcare Ltd,100280164,"32,776.44"
Department of Health,University Hospitals of Morecambe Bay NHS Foundation Trust,07-May-21,Orthotics Service,Trust Wide,Blatchford Limited,100280802,"59,072.71"
Department of Health,University Hospitals of Morecambe Bay NHS Foundation Trust,07-May-21,Medical Equipment,Ultrasound,Canon Medical Systems Limited,100275591,"75,600.00"
Department of Health,University Hospitals of Morecambe Bay NHS Foundation Trust,07-May-21,Drugs,Pharmacy,Healthcare At Home Limited,100280171,"28,109.33"
Department of Health,University Hospitals of Morecambe Bay NHS Foundation Trust,07-May-21,NHS Product Sales,Trust Wide,NHS Supply Chain,100280850,"229,861.53"
Department of Health,University Hospitals of Morecambe Bay NHS Foundation Trust,07-May-21,"Agency Nurses, Midwives & ODPs",Trust Wide,Retinue Solutions Ltd,100279003,"52,294.02"
Department of Health,University Hospitals of Morecambe Bay NHS Foundation Trust,07-May-21,"Agency Nurses, Midwives & ODPs",Trust Wide,Retinue Solutions Ltd,100279476,"51,870.81"
Department of Health,University Hospitals of Morecambe Bay NHS Foundation Trust,07-May-21,"Agency Nurses, Midwives & ODPs",Trust Wide,Retinue Solutions Ltd,100280410,"50,474.07"
Department of Health,University Hospitals of Morecambe Bay NHS Foundation Trust,07-May-21,Recharge Specialist Registrars,Trust Wide,St Helens & Knowsley Hospitals Nhs Trust,100281037,"620,000.00"
Department of Health,University Hospitals of Morecambe Bay NHS Foundation Trust,07-May-21,Flooring Contrcator,Capital Services,The Contract Flooring (Cumbria) Ltd,100278009,"33,184.80"
Department of Health,University Hospitals of Morecambe Bay NHS Foundation Trust,07-May-21,Engineering Services,Capital Services,The James Mercer Group Limited,100281040,"73,565.83"
Department of Health,University Hospitals of Morecambe Bay NHS Foundation Trust,14-May-21,Drugs,Pharmacy,AAH Pharmaceuticals Ltd,100281433,"189,738.08"
Department of Health,University Hospitals of Morecambe Bay NHS Foundation Trust,14-May-21,Mobile MRI Scanner,Radiology,Alliance Medical Ltd,100282190,"58,588.70"
Department of Health,University Hospitals of Morecambe Bay NHS Foundation Trust,14-May-21,Drugs,Pharmacy,Alloga UK Ltd,100281904,"27,980.20"
Department of Health,University Hospitals of Morecambe Bay NHS Foundation Trust,14-May-21,Drugs,Pharmacy,Baxter Healthcare Ltd,100282081,"32,433.13"
Department of Health,University Hospitals of Morecambe Bay NHS Foundation Trust,14-May-21,Drugs,Pharmacy,Bayer PLC,100281820,"32,848.42"
Department of Health,University Hospitals of Morecambe Bay NHS Foundation Trust,14-May-21,Medical Equipment,Capital Services,Bender UK Ltd,100272018,"86,353.80"
Department of Health,University Hospitals of Morecambe Bay NHS Foundation Trust,14-May-21,Drugs,Pharmacy,Biotest UK Ltd,100281705,"40,950.00"
Department of Health,University Hospitals of Morecambe Bay NHS Foundation Trust,14-May-21,Drugs,Pharmacy,Biotest UK Ltd,100281122,"56,550.00"
Department of Health,University Hospitals of Morecambe Bay NHS Foundation Trust,14-May-21,Rates,Estates & Facilities,Borough Of Barrow-In-Furness,100281301,"58,026.66"
Department of Health,University Hospitals of Morecambe Bay NHS Foundation Trust,14-May-21,Patient Management Contract,Corporate,CHS Healthcare,100281484,"38,400.00"
Department of Health,University Hospitals of Morecambe Bay NHS Foundation Trust,14-May-21,Medical Equipment,Ultrasound,Canon Medical Systems Limited,100281455,"34,800.00"
Department of Health,University Hospitals of Morecambe Bay NHS Foundation Trust,14-May-21,Drugs,Pharmacy,Healthcare At Home Limited,100282106,"30,761.51"
Department of Health,University Hospitals of Morecambe Bay NHS Foundation Trust,14-May-21,Drugs,Pharmacy,Healthcare At Home Limited,100282107,"31,537.22"
Department of Health,University Hospitals of Morecambe Bay NHS Foundation Trust,14-May-21,Rates,Estates & Facilities,Lancaster City Council,100281293,"51,200.00"
Department of Health,University Hospitals of Morecambe Bay NHS Foundation Trust,14-May-21,NHS Product Sales,Trust Wide,NHS Supply Chain,100281889,"198,340.35"
Department of Health,University Hospitals of Morecambe Bay NHS Foundation Trust,14-May-21,Maintenance Contract,Endoscopy,NHS Supply Chain,100279898,"62,230.23"
Department of Health,University Hospitals of Morecambe Bay NHS Foundation Trust,14-May-21,Agency Medical Staff - Management Costs,Trust Wide,Retinue Solutions Ltd,100275634,"30,778.37"
Department of Health,University Hospitals of Morecambe Bay NHS Foundation Trust,14-May-21,Agency Medical Staff - Management Costs,Trust Wide,Retinue Solutions Ltd,100277196,"29,735.22"
Department of Health,University Hospitals of Morecambe Bay NHS Foundation Trust,14-May-21,Agency Medical Staff - Management Costs,Trust Wide,Retinue Solutions Ltd,100279002,"45,609.42"
Department of Health,University Hospitals of Morecambe Bay NHS Foundation Trust,14-May-21,Agency Medical Staff - Management Costs,Trust Wide,Retinue Solutions Ltd,100279482,"36,685.29"
Department of Health,University Hospitals of Morecambe Bay NHS Foundation Trust,14-May-21,Agency Medical Staff - Management Costs,Trust Wide,Retinue Solutions Ltd,100280411,"39,538.57"
Department of Health,University Hospitals of Morecambe Bay NHS Foundation Trust,14-May-21,"Agency Nurses, Midwives & ODPs",Trust Wide,Retinue Solutions Ltd,100281914,"62,324.27"
Department of Health,University Hospitals of Morecambe Bay NHS Foundation Trust,14-May-21,Mobile Theatres,Theatres,Vanguard Healthcare Solutions Ltd,100282124,"41,099.60"
Department of Health,University Hospitals of Morecambe Bay NHS Foundation Trust,14-May-21,Mobile Theatres,Theatres,Vanguard Healthcare Solutions Ltd,100281693,"43,154.58"
Department of Health,University Hospitals of Morecambe Bay NHS Foundation Trust,18-May-21,Drugs,Pharmacy,Baxter Healthcare Ltd,100282761,"42,122.95"
Department of Health,University Hospitals of Morecambe Bay NHS Foundation Trust,18-May-21,Drugs,Pharmacy,Bayer PLC,100282323,"27,373.68"
Department of Health,University Hospitals of Morecambe Bay NHS Foundation Trust,18-May-21,Patient Admin - Managed Service,Information Technology,DH OpCo UK Ltd,100281891,"45,443.05"
Department of Health,University Hospitals of Morecambe Bay NHS Foundation Trust,18-May-21,Drugs,Pharmacy,Roche Products Ltd,100282519,"27,509.51"
Department of Health,University Hospitals of Morecambe Bay NHS Foundation Trust,18-May-21,Waiting List (Additional Capacity),Surgery,SpaMedica Ltd,100273287,"33,572.00"
Department of Health,University Hospitals of Morecambe Bay NHS Foundation Trust,21-May-21,Scans & Xray Reporting,Radiology,4Ways Healthcare,100282563,"59,642.64"
Department of Health,University Hospitals of Morecambe Bay NHS Foundation Trust,21-May-21,Drugs,Pharmacy,Alloga UK Ltd,100283178,"61,931.57"
Department of Health,University Hospitals of Morecambe Bay NHS Foundation Trust,21-May-21,Drugs,Pharmacy,Bath Asu,100282940,"42,796.68"
Department of Health,University Hospitals of Morecambe Bay NHS Foundation Trust,21-May-21,Drugs,Pharmacy,Baxter Healthcare Ltd,100283498,"29,616.27"
Department of Health,University Hospitals of Morecambe Bay NHS Foundation Trust,21-May-21,Drugs,Pharmacy,Biotest UK Ltd,100282984,"39,000.00"
Department of Health,University Hospitals of Morecambe Bay NHS Foundation Trust,21-May-21,Drugs,Pharmacy,Biotest UK Ltd,100282986,"35,100.00"
Department of Health,University Hospitals of Morecambe Bay NHS Foundation Trust,21-May-21,Drugs,Pharmacy,Healthcare At Home Limited,100283374,"29,339.02"
Department of Health,University Hospitals of Morecambe Bay NHS Foundation Trust,21-May-21,Drugs,Pharmacy,Healthcare At Home Limited,100283376,"33,541.81"
Department of Health,University Hospitals of Morecambe Bay NHS Foundation Trust,21-May-21,CNST Premium,Corporate,NHS Resolution,100283523,"1,124,492.68"
Department of Health,University Hospitals of Morecambe Bay NHS Foundation Trust,21-May-21,NHS Product Sales,Trust Wide,NHS Supply Chain,100283236,"242,186.04"
Department of Health,University Hospitals of Morecambe Bay NHS Foundation Trust,21-May-21,Maintenance Contract,Radiology,NHS Supply Chain,100281771,"24,637.29"
Department of Health,University Hospitals of Morecambe Bay NHS Foundation Trust,21-May-21,Electricity Charges,Estates & Facilities,NPower,100283355,"39,157.70"
Department of Health,University Hospitals of Morecambe Bay NHS Foundation Trust,21-May-21,Electricity Charges,Estates & Facilities,NPower,100283358,"33,258.49"
Department of Health,University Hospitals of Morecambe Bay NHS Foundation Trust,21-May-21,Waiting List (Additional Capacity),Surgery,Primary Eyecare North Ltd,100282597,"28,002.40"
Department of Health,University Hospitals of Morecambe Bay NHS Foundation Trust,21-May-21,Waiting List (Additional Capacity),Surgery,Primary Eyecare North Ltd,100283191,"33,875.40"
Department of Health,University Hospitals of Morecambe Bay NHS Foundation Trust,21-May-21,"Agency Nurses, Midwives & ODPs",Trust Wide,Retinue Solutions Ltd,100283166,"52,154.12"
Department of Health,University Hospitals of Morecambe Bay NHS Foundation Trust,21-May-21,Payroll Services,Workforce,Salford Royal NHS Foundation Trust,100282732,"32,756.00"
Department of Health,University Hospitals of Morecambe Bay NHS Foundation Trust,21-May-21,Monthly Charge,Information Technology,Sectra Limited,100283149,"31,298.35"
Department of Health,University Hospitals of Morecambe Bay NHS Foundation Trust,24-May-21,Blood & Blood components contract,Core Clinical,NHS Blood and Transplant,100281516,"50,542.16"
Department of Health,University Hospitals of Morecambe Bay NHS Foundation Trust,28-May-21,Drugs,Pharmacy,Alloga UK Ltd,100284399,"42,397.44"
Department of Health,University Hospitals of Morecambe Bay NHS Foundation Trust,28-May-21,Specialist Pressure Area Beds,Trust Wide,Arjo UK Ltd,100274918,"131,520.00"
Department of Health,University Hospitals of Morecambe Bay NHS Foundation Trust,28-May-21,Drugs,Pharmacy,Baxter Healthcare Ltd,100284474,"49,155.54"
Department of Health,University Hospitals of Morecambe Bay NHS Foundation Trust,28-May-21,Drugs,Pharmacy,Baxter Healthcare Ltd,100284476,"29,911.36"
Department of Health,University Hospitals of Morecambe Bay NHS Foundation Trust,28-May-21,Managed Service Contract,Pathology,Beckman Coulter UK,100273765,"251,084.16"
Department of Health,University Hospitals of Morecambe Bay NHS Foundation Trust,28-May-21,Managed Service Contract,Pathology,Beckman Coulter UK,100273760,"238,122.00"
Department of Health,University Hospitals of Morecambe Bay NHS Foundation Trust,28-May-21,Managed Service Contract,Pathology,Beckman Coulter UK,100279191,"330,132.71"
Department of Health,University Hospitals of Morecambe Bay NHS Foundation Trust,28-May-21,Building Contractor,Capital Services,City Build Manchester Ltd,100284303,"86,720.56"
Department of Health,University Hospitals of Morecambe Bay NHS Foundation Trust,28-May-21,Patient Admin - Managed Service,Information Technology,DH OpCo UK Ltd,100284758,"45,443.05"
Department of Health,University Hospitals of Morecambe Bay NHS Foundation Trust,28-May-21,Patient Beds,Trust Wide,Direct Healthcare Group,100274861,"135,600.00"
Department of Health,University Hospitals of Morecambe Bay NHS Foundation Trust,28-May-21,Drugs,Pharmacy,Healthcare At Home Limited,100284723,"26,720.92"
Department of Health,University Hospitals of Morecambe Bay NHS Foundation Trust,28-May-21,Drugs,Pharmacy,Healthcare At Home Limited,100284724,"32,503.30"
Department of Health,University Hospitals of Morecambe Bay NHS Foundation Trust,28-May-21,Drugs,Pharmacy,Healthcare At Home Limited,100284725,"48,111.96"
Department of Health,University Hospitals of Morecambe Bay NHS Foundation Trust,28-May-21,NHS Product Sales,Trust Wide,NHS Supply Chain,100284346,"234,739.40"
Department of Health,University Hospitals of Morecambe Bay NHS Foundation Trust,28-May-21,Waiting List (Additional Capacity),Surgery,Primary Eyecare North Ltd,100283194,"42,586.20"
Department of Health,University Hospitals of Morecambe Bay NHS Foundation Trust,28-May-21,Agency Medical Staff - Management Costs,Trust Wide,Retinue Solutions Ltd,100284269,"22,216.80"
Department of Health,University Hospitals of Morecambe Bay NHS Foundation Trust,28-May-21,"Agency Nurses, Midwives & ODPs",Trust Wide,Retinue Solutions Ltd,100284295,"44,166.88"
Department of Health,University Hospitals of Morecambe Bay NHS Foundation Trust,28-May-21,Waiting List (Additional Capacity),Surgery,SpaMedica Ltd,100284535,"26,510.00"
Department of Health,University Hospitals of Morecambe Bay NHS Foundation Trust,28-May-21,Managed Servce - Combined Heat & Power,Estates & Facilities,Veolia ES Resource Efficiency (UK),100283165,"43,290.90"
Department of Health,University Hospitals of Morecambe Bay NHS Foundation Trust,28-May-21,Managed Servce - Combined Heat & Power,Estates & Facilities,Veolia ES Resource Efficiency (UK),100283167,"43,290.90"
